Cogmind - Beta 15 @@@ ROGUE MODE // 2025.08.10 @ 18:31:11 Player: Zoe Result: Destroyed by S-10 Pest with Light Assault Rifle Performance ------------- Evolutions (2) 1000 Regions Visited (3) 600 Robots Destroyed (18) 90 Value Destroyed (421) 421 Prototype IDs (1) 20 Alien Tech Used (0) 0 Bonus (0) 0 TOTAL SCORE: 2131 Bonus ------- None Cogmind --------- Core Integrity 0/550 Matter 226/300 Energy 100/100 System Corruption 1% Temperature Cool (0) Movement Core (50) Location -8/Materials Parts ------- > --- POWER (1) -------- (None) > --- PROPULSION (2) --- (None) > --- UTILITY (6) ------ (None) > --- WEAPON (2) ------- (None) > --- INVENTORY (5) ---- (None) Peak State ------------ > --- POWER ------------ Light Nuclear Core > --- PROPULSION ------- Light Treads Light Treads > --- UTILITY ---------- Medium Storage Unit Sensor Array Signal Interpreter Seismic Detector > --- WEAPON ----------- Assault Rifle Heavy Hammer > --- INVENTORY -------- Ion Engine Light Treads Light Treads Heat Sink Improved Terrain Scanner ECM Suite Assault Rifle Grenade Launcher [Rating: 13] Favorites ----------- Power Light Nuclear Core Engine Ion Engine Power Core Light Nuclear Core Propulsion Light Treads Treads Light Treads Utility Signal Interpreter Device Seismic Detector Storage Medium Storage Unit Processor Signal Interpreter Weapon Assault Rifle Energy Gun Medium Laser Ballistic Gun Assault Rifle Launcher Grenade Launcher Special Weapon Mining Laser Impact Weapon Heavy Hammer Build | -11 -10 -9 -8 ------- Run | Yrd Mat Mat Mat Slots Evolved 4 | . . 2 2 Power . | . . . . Propulsion . | . . . . Utility 4 | . . 2 2 Weapon . | . . . . Parts Attached 18 | 7 8 3 . Power 4 | 2 1 1 . Engine 3 | 2 . 1 . Core 1 | . 1 . . Reactor . | . . . . Propulsion 3 | 2 1 . . Treads 3 | 2 1 . . Leg . | . . . . Wheel . | . . . . Hover . | . . . . Flight . | . . . . Utility 5 | 1 3 1 . Device 2 | . 1 1 . Storage 2 | 1 1 . . Processor 1 | . 1 . . Hackware . | . . . . Protection . | . . . . Artifact . | . . . . Weapon 6 | 2 3 1 . Energy Gun 1 | 1 . . . Energy Cannon . | . . . . Ballistic Gun 2 | 1 1 . . Ballistic Cannon . | . . . . Launcher 1 | . 1 . . Special Weapon 1 | . 1 . . Impact Weapon 1 | . . 1 . Slashing Weapon . | . . . . Piercing Weapon . | . . . . Special Melee Weapon . | . . . . Unidentified Prototypes 1 | . . 1 . Parts Lost 2 | . . 2 . Power . | . . . . Propulsion 1 | . . 1 . Utility 1 | . . 1 . Weapon . | . . . . Highest Loss Streak 2 | . . 2 . To Critical Strikes . | . . . . Average Backups 5 | 4 6 6 . Power . | . 1 1 . Propulsion 1 | 1 1 1 . Utility 2 | . 2 2 . Weapon 1 | 1 1 1 . Tool/Special . | . . . . Unused Backups 11 | . 3 4 4 Power 2 | . . 1 1 Propulsion 3 | . 2 1 . Utility 4 | . . 1 3 Weapon 2 | . 1 1 . Tool/Special . | . . . . Average Slot Usage (%) 88 | . 99 96 . Engine 3 | . 4 3 . Core 8 | . 9 7 . Treads 23 | . 28 21 . Device 6 | . 2 20 . Storage 11 | . 14 10 . Processor 10 | . 11 10 . Ballistic Gun 16 | . 18 18 . Launcher 4 | . 7 . . Peak Build Rating 13 | 6 9 13 . Average Rating 7 | 5 8 11 . On Entrance 3 | . 6 9 . Naked Turns 132 | . . 10 122 Heaviest Build 25 | 14 20 25 . Greatest Support 40 | 40 40 40 3 Greatest Overweight (x) 1 | . . 1 . Average Overweight (x) . | . . . . Largest Inventory Capacity 10 | 8 10 10 5 Average Capacity 8 | 7 9 9 5 Most Carried 9 | 7 8 9 4 Average Carried 5 | 4 6 6 . Final Capacity 10 | 8 10 5 5 Final Carried 7 | 7 7 5 . Class Distribution -------------------- 100% | Mutant Dominant Class ---------------- Mutant | -10/Materials Mutant | -9/Materials Mutant | -8/Materials Resources | -11 -10 -9 -8 ----------- Run | Yrd Mat Mat Mat Matter Collected 677 | 318 219 140 . Remotely . | . . . . Salvage Created 671 | 144 356 140 31 Parts 42 | 14 17 7 4 Haulers Intercepted 2 | . 1 1 . Recyclers Shooed . | . . . . Parts Field Recycled . | . . . . Retrieved Matter . | . . . . Parts Self-Destructed . | . . . . Prevented . | . . . . Kills | -11 -10 -9 -8 ------- Run | Yrd Mat Mat Mat Combat Hostiles Destroyed 10 | . 6 2 2 Melee 1 | . . 1 . Guns 7 | . 6 1 . AOE 2 | . . . 2 Classes Destroyed 6 | 2 2 1 1 Tunneler 4 | 4 . . . Hauler 2 | . 1 1 . Recycler 2 | 1 1 . . Swarmer 2 | . . . 2 Grunt 6 | . 6 . . Sentry 2 | . . 2 . Best Kill Streak 3 | 3 3 1 2 Combat Bots Only 3 | . 3 1 2 Max Kills in Single Turn 2 | 1 1 1 2 Gunslinging . | . . . . Exploded 2 | . . . 2 Melee 1 | . . 1 . Uniques/NPCs Destroyed . | . . . . Combat | -11 -10 -9 -8 -------- Run | Yrd Mat Mat Mat Hostile Shots Fired 163 | . 23 82 58 Missed 42 | . 6 28 8 Hits 121 | . 17 54 50 Projectile 121 | . 17 54 50 Critical Strikes 3 | . . 2 1 Damage Taken 1454 | . 219 682 553 Core 787 | . 34 200 553 Absorbed by Shields . | . . . . Regen/Repaired (Parts) 43 | . . 43 . Core Remaining (%) 78 | 100 86 50 . Volleys Fired 56 | 16 35 5 . Largest 2 | 2 2 2 . Hottest 100 | 70 100 40 . Shots Fired 98 | 32 57 9 . Gun 85 | 32 44 9 . Cannon . | . . . . Launcher 12 | . 12 . . Special 1 | . 1 . . Kinetic 66 | 16 41 9 . Thermal 20 | 16 4 . . Explosive 12 | . 12 . . Electromagnetic . | . . . . Robot Hit Streak 10 | 6 10 8 . Robot Miss Streak 3 | 2 3 1 . Penetration Max . | . . . . Secondary Targets 2 | . 2 . . Max Gunslinging Chain 1 | . 1 . . Shots Hit Robots 60 | 19 30 11 . Core Hits 24 | 6 13 3 2 Critical Kills . | . . . . Critical Parts Destroyed 3 | . 1 2 . Critical Strikes 4 | 1 1 2 . Burn 1 | 1 . . . Destroy 1 | . 1 . . Smash 2 | . . 2 . Melee Attacks 4 | . . 4 . Impact 4 | . . 4 . Slashing . | . . . . Piercing . | . . . . Sneak Attacks 1 | . . 1 . Combat Hostiles . | . . . . Follow-up Attacks . | . . . . Damage Inflicted 937 | 235 425 213 64 Guns 704 | 235 370 99 . Cannons . | . . . . Explosions 119 | . 55 . 64 Melee 114 | . . 114 . Ramming . | . . . . Kinetic 555 | 122 334 99 . Thermal 149 | 113 36 . . Explosive 55 | . 55 . . Electromagnetic 64 | . . . 64 Impact 114 | . . 114 . Slashing . | . . . . Piercing . | . . . . Highest Corruption 1 | . . 1 1 Average Corruption 1 | . . 1 1 Corruption Purged . | . . . . Corruption Blocked . | . . . . Effects 4 | . . 3 1 Matter Fused 3 | . . 2 1 Parts Rejected 1 | . . 1 . Overload Shots . | . . . . Overflow Damage 101 | . . 93 8 Projectiles . | . . . . Explosions 8 | . . . 8 Melee 93 | . . 93 . Knockbacks . | . . . . Impact . | . . . . Kinetic . | . . . . Secondary . | . . . . Self-Inflicted Damage . | . . . . Shots . | . . . . Rammed 1 | . . . 1 Targets Rammed 1 | . . . 1 Kicked . | . . . . Crushed . | . . . . Highest Temperature 45 | 18 45 6 . Average Temperature 11 | 9 13 3 . Received Heat Transfer 480 | . 123 357 . Siege Activations . | . . . . Martial Activations . | . . . . Shielding Activations . | . . . . Robots Disrupted . | . . . . Combat Hostiles . | . . . . Robots Corrupted . | . . . . Combat Hostiles . | . . . . Parts Fried 3 | . . 3 . Impact Corruptions 3 | . . 3 . Robots Melted . | . . . . Combat Hostiles . | . . . . Parts Melted 1 | 1 . . . Heat Transferred 518 | 407 111 . . Parts Sabotaged . | . . . . Parts Stolen . | . . . . Parts Stripped . | . . . . Power Chain Reactions . | . . . . Alert | -11 -10 -9 -8 ------- Run | Yrd Mat Mat Mat Maximum Alert Level . | . . . . Low Security (%) 100 | 100 100 100 100 Level 1 . | . . . . Level 2 . | . . . . Level 3 . | . . . . Level 4 . | . . . . Level 5 . | . . . . High Security . | . . . . Max Security . | . . . . Peak Influence 92 | 10 92 60 90 Initial 10 | . . 10 . Average 16 | 1 20 9 37 Influence Increases 488 | 25 255 98 110 Destroy 0b10 Robot/C 200 | . 120 40 40 Destroy 0b10 Robot/NC 40 | 25 10 5 . Destroy Leader 54 | . 22 22 10 Disable Machine 75 | . 60 . 15 Destroy Structure 44 | . 43 1 . Lose Combat Pursuer 75 | . . 30 45 Influence Decreases 418 | 25 229 124 40 Entered New Map 16 | . . 16 . Time Decay 382 | 25 229 88 40 Lost Part 20 | . . 20 . Squads Dispatched 5 | . 1 2 2 Investigation 3 | . 1 1 1 Extermination . | . . . . Reinforcement 2 | . . 1 1 Assault . | . . . . Garrison . | . . . . Intercept . | . . . . Searches Triggered . | . . . . Construction Impeded . | . . . . Haulers Reinforced . | . . . . Active Scanning Responses . | . . . . Cargo Convoy Interrupts . | . . . . Stealth | -11 -10 -9 -8 --------- Run | Yrd Mat Mat Mat Distress Signals 4 | . . 4 . Communications Jammed . | . . . . Distress Signals . | . . . . Times Spotted 25 | . 6 14 5 Peak Tracking Total 10 | . 3 10 5 Tactical Retreats 3 | . . 1 2 Traps | -11 -10 -9 -8 ------- Run | Yrd Mat Mat Mat Traps Triggered . | . . . . Indirectly . | . . . . Trap Hack Attempts . | . . . . Triggered . | . . . . Disarmed . | . . . . Reprogrammed . | . . . . Reused . | . . . . Traps Extracted . | . . . . Installed . | . . . . Triggered . | . . . . Objects Rigged 3 | . . . 3 Exploded 1 | . . . 1 Machines | -11 -10 -9 -8 ---------- Run | Yrd Mat Mat Mat Machines Disabled 5 | . 4 . 1 Max in Single Turn 2 | . 2 . 1 Machines Repaired . | . . . . Machines Dismantled . | . . . . Machines Sabotaged . | . . . . Overloaded Fab Kills . | . . . . Hacking | -11 -10 -9 -8 --------- Run | Yrd Mat Mat Mat Machines Accessed 5 | . 1 3 1 Terminals 3 | . 1 1 1 Fabricators . | . . . . Repair Stations 1 | . . 1 . Recycling Units 1 | . . 1 . Scanalyzers . | . . . . Garrison Access . | . . . . Total Hacks 17 | . 3 10 4 Successful 9 | . . 6 3 Failed 8 | . 3 4 1 Catastrophic . | . . . . Database Lockouts . | . . . . Manual 9 | . 3 2 4 Terminals 11 | . 3 4 4 Fabricators . | . . . . Repair Stations 3 | . . 3 . Recycling Units 3 | . . 3 . Scanalyzers . | . . . . Garrison Access . | . . . . Terminal Hacks 1 | . . 1 . Alert Level 1 | . . 1 . Fabricator Hacks . | . . . . Repair Station Hacks 2 | . . 2 . Scan Component 1 | . . 1 . Repair 1 | . . 1 . Recycling Unit Hacks 2 | . . 2 . Report Inventory 1 | . . 1 . Retrieve Components 1 | . . 1 . Scanalyzer . | . . . . Garrison Access Hacks . | . . . . Unauthorized Hacks 4 | . . 1 3 Terminals 4 | . . 1 3 Track 1 | . . . 1 Botnet 1 | . . 1 . Detonate 1 | . . . 1 Operators 1 | . . . 1 Fabricators . | . . . . Repair Stations . | . . . . Recycling Units . | . . . . Scanalyzers . | . . . . Garrison Access . | . . . . Data Cores Recovered . | . . . . Used . | . . . . Hacking Detections 5 | . 1 3 1 Full Trace Events 4 | . 1 2 1 Feedback Events 1 | . . 1 . Corruption 1 | . . 1 . Feedback Blocked . | . . . . Robot Schematics Acquired . | . . . . Robots Built . | . . . . Authchips . | . . . . Time . | . . . . Total Robot Build Rating . | . . . . Part Schematics Acquired . | . . . . Parts Built . | . . . . Authchips . | . . . . Time . | . . . . Total Part Build Rating . | . . . . Parts Repaired 1 | . . 1 . Time 26 | . . 26 . Parts Recycled . | . . . . Recycled Matter . | . . . . Retrieved Matter . | . . . . Retrieved Components 2 | . . 2 . Parts Scanalyzed . | . . . . Part Schematics Acquired . | . . . . Parts Damaged . | . . . . Bothacking | -11 -10 -9 -8 ------------ Run | Yrd Mat Mat Mat Used RIF Installer . | . . . . Robots Hacked . | . . . . Non-combat . | . . . . Combat . | . . . . Robot Hacks Applied . | . . . . Relay Couplers Released . | . . . . Fabnet Peak Effective % . | . . . . Robots Rewired . | . . . . Allies Hacked . | . . . . Hacks Repelled . | . . . . Allies | -11 -10 -9 -8 -------- Run | Yrd Mat Mat Mat Total Allies . | . . . . Largest Group . | . . . . Highest-Rated Group . | . . . . Highest-Rated Ally . | . . . . Total Orders . | . . . . Ally Attacks . | . . . . Total Damage . | . . . . Kills . | . . . . Allies Corrupted . | . . . . Allies Melted . | . . . . Intel | -11 -10 -9 -8 ------- Run | Yrd Mat Mat Mat Active Infowar (turns) 487 | . 156 331 . Sensors 321 | . . 321 . Seismic 487 | . 156 331 . Robot Analysis Total . | . . . . Derelict Logs Recovered . | . . . . Drone Launches . | . . . . Drone Recoveries . | . . . . Exploration | -11 -10 -9 -8 ------------- Run | Yrd Mat Mat Mat Turns Passed 1629 | 276 886 345 122 Spaces Moved 716 | 136 270 181 129 Core 158 | 8 . 21 129 Treads 558 | 128 270 160 . Legs . | . . . . Wheels . | . . . . Hover . | . . . . Flight . | . . . . Fastest Speed 50 | 50 160 50 50 Average Speed 136 | 153 160 149 50 Slowest Speed 240 | 160 160 240 50 Overloaded Moves . | . . . . Propulsion Burnouts . | . . . . Robots Hopped . | . . . . Potential Cave-ins . | . . . . Cave-ins Triggered . | . . . . Exploration Rate (%) 20 | 8 33 23 19 Regions Visited 3 Branch Regions . Pre-discovered Areas . | . . . . Known Exits Taken 1 | . 1 . . Unknown Exits Taken 2 | 1 . 1 . Scrap Searched . | . . . . Spaces Dug 5 | . 4 1 . Terrain Destroyed 50 | . 49 1 . Melee 1 | . . 1 . Projectile . | . . . . AOE 49 | . 49 . . Terrain Rammed . | . . . . Walls Destroyed . | . . . . Machines Disabled . | . . . . Actions | -11 -10 -9 -8 --------- Run | Yrd Mat Mat Mat Total 1265 | 171 664 240 190 Wait 423 | . 338 32 53 Move 713 | 135 269 180 129 Hop . | . . . . Pick Up 30 | 13 7 9 1 Fast Attach . | . . . . Attach 10 | 6 1 3 . Detach . | . . . . Swap 12 | 1 8 3 . Drop 16 | . 6 4 6 Fire 56 | 16 35 5 . Melee 4 | . . 4 . Ram 1 | . . . 1 Kick . | . . . . Crush . | . . . . Escape Stasis . | . . . . Rewire . | . . . . Trap . | . . . . Miscellaneous . | . . . . Route ------- -11/Scrapyard -10/Materials -9/Materials -8/Materials History --------- Turn | Location | Event 30 | -11/Scrapyard | Discovered new exit (range 15) 277 | -11/Scrapyard | Entered Materials 302 | -10/Materials | Build established: Mutant 432 | -10/Materials | Discovered new exit (range 5) 440 | -10/Materials | Identified exit to Materials 1163 | -10/Materials | Entered another Materials area 1163 | -9/Materials | Evolved 2 slots: Utility x2 1203 | -9/Materials | Repaired Lgt. Treads 1498 | -9/Materials | Released all parts (7) 1502 | -9/Materials | Discovered new exit (range 15) 1508 | -9/Materials | Entered another Materials area 1508 | -8/Materials | Evolved 2 slots: Utility x2 1575 | -8/Materials | Core integrity fell below 50% 1610 | -8/Materials | Core integrity fell below 20% 1630 | -8/Materials | Destroyed by S-10 Pest with Light Assault Rifle Last Messages --------------- Scanning machine control network... Found 3 applicable machines. OISIM44YN7: Fusion Modulator CJMBYBWV5L: Fusion Modulator 9BJDGVI7XK: Neutrino Reactor Infected machine control systems. >>Trojan(Track) Trojan loaded successfully. Testing... Tracking enabled and active. >>Trojan(Operators) Trojan loaded successfully. Testing... Operator tracking enabled and active. 01563_ ALERT: Suspicious activity at Terminal M003. Dispatching Investigation squad. 01579_ Slammed into S-10 Pest. 01579_ Destabilizing: System corrupted (+1). 01584_ Door malfunctions. 01609_ System corrupted: Matter fused (-7). Map ----- +----------------------------------------------------+ | | | | | | | | | | | | | | | | | | | | | | | | | | | | | | | | | ################?????????????????????????????????? | | # """ #?????????????????????????????????? | | "" # """ #?????????????????????????????????? | | T" / """ #???########??????????????????????? | | "" # #???# """ #??????????????????????? | | # ##### """ #??????????????????????? | | ###+#########/## # """ ]#??????????????????????? | | ss #??????????????????????? | | ########## # ! #??????????????????????? | | #????????##### @#??????????????????????? | | #???????#############??????????????????????? | | ######### ! #??????????????????????????????? | | #??????????????????????????????? | | ##+############ #??????#####???????????????????? | | ?????????## ##??????# ] #?????????#?????????? | | """ #?????????# #???????#=*!#?###???? #?????????? | | """ #??######## #???????# ! #? ??## ###???????? | | """ #??# # #???????+ ### ### #???????? | | #??# # #???????# #???????? | | ######### % + #???????# #???????? | | ] ## # #???????# //] ######??? | | ## + #???????# /] ! ? | | ## # #???????# /] ###?????? | | """"" #######"# ##??????# #???????? | | """"" # % #??????+ " #???????? | | """"" + #??????# """ #???????? | | # #??????# """ #???????? | | """"" ###+#### #??????# """ #???????? | | """"" # ## #??????# "" #???????? | | """"" # ## #??????# """ ????????? | | ?? # " ## ##?????# ^ "" ????????? | | ??###### """ # ####### "" #???????? | | ???????# "" # " ??????? | | ???????# """ + " ! ??????? | +----------------------------------------------------+ Best States ------------- Heat Dissipation 31 Energy Generation 14 Energy Capacity 280 Matter Stores 300 Matter Capacity 300 Sight Range 16 Robot Scan Range 14 Terrain Scan Density 10 Evasion (%) 50 Recoil Reduction 2 Item Schematics ----------------- None Robot Schematics ------------------ None Fabricated ------------ Nothing Repaired ---------- Lgt. Treads | 69% | -9/Materials Alien Tech Used ----------------- None Achievements -------------- None Challenges ------------ None Game ------ Seed PlatingEfficiencyFlail Manual? 0 Play Time 00:17:15 Cumulative 47.5 hours Start 2025.08.10 @ 18:16:11 End 2025.08.10 @ 18:31:11 Sessions 1 Manual Loads 0 Difficulty Rogue Special Mode None Game No. 92 Rogue 89 Adventurer 3 Explorer 0 Win Type - Total 0 Types 0/0/0/0/0/0/0/0/0/0 Lore% 29 Gallery% 31 Achievement% 31 Wizard Run 0 Options --------- Layout 1 ASCII 0 Keyboard 0 Movement Mouse Keybinds 0 Fullscreen 1 Font 24/Smallcaps Map View 50x35 Zoom Use 0% Tactical HUD 1 Map Filters NONE Filters NONE Steam 1 RUN: c4b206e7-dced-4f4e-8be9-b4a56bf21462